Cogmind - Beta 16 @@@ ROGUE MODE // 2025.10.26 @ 20:57:37 Player: Jaegerpls Result: Self-destructed Performance ------------- Evolutions (1) 500 Regions Visited (2) 400 Robots Destroyed (37) 185 Value Destroyed (946) 946 Prototype IDs (0) 0 Alien Tech Used (0) 0 Bonus (0) 0 TOTAL SCORE: 2031 Bonus ------- None Cogmind --------- Core Integrity 179/400 Matter 264/300 Energy 215/250 System Corruption 0% Temperature Danger (473) Movement Core (300) Ox5 Location -9/Materials Parts ------- > --- POWER (1) -------- Ion Engine > --- PROPULSION (2) --- (None) > --- UTILITY (4) ------ Medium Storage Unit Signal Interpreter > --- WEAPON (2) ------- Beam Cannon > --- INVENTORY (10) --- High-capacity Battery (250) Visual Processing Unit ECM Suite Medium Laser Medium Laser Heavy Assault Rifle Light Cannon Light Cannon Peak State ------------ > --- POWER ------------ Improved Ion Engine > --- PROPULSION ------- Wheel Wheel > --- UTILITY ---------- Heat Sink Medium Storage Unit Signal Interpreter Medium Armor Plating > --- WEAPON ----------- Medium Laser Beam Cannon > --- INVENTORY -------- Ion Engine Improved Ion Engine High-capacity Battery Visual Processing Unit ECM Suite Medium Laser Heavy Assault Rifle Light Cannon Light Cannon Light Cannon [Rating: 12] Favorites ----------- Power Ion Engine Engine Ion Engine Propulsion Aluminum Leg Leg Aluminum Leg Wheel Wheel Utility Medium Storage Unit Device Heat Sink Storage Medium Storage Unit Processor Signal Interpreter Protection Medium Armor Plating Weapon Medium Laser Energy Gun Medium Laser Energy Cannon Beam Cannon Ballistic Gun Light Assault Rifle Ballistic Cannon Light Cannon Special Weapon Welding Torch Build | -11 -10 -9 ------- Run | Yrd Mat Mat Slots Evolved 2 | . . 2 Power . | . . . Propulsion . | . . . Utility 2 | . . 2 Weapon . | . . . Parts Attached 28 | 7 15 6 Power 5 | 1 1 3 Engine 5 | 1 1 3 Core . | . . . Reactor . | . . . Propulsion 7 | 2 4 1 Treads . | . . . Leg 3 | . 3 . Wheel 4 | 2 1 1 Hover . | . . . Flight . | . . . Utility 7 | 1 4 2 Device 2 | . 1 1 Storage 3 | 1 2 . Processor 1 | . 1 . Hackware . | . . . Protection 1 | . . 1 Artifact . | . . . Weapon 9 | 3 6 . Energy Gun 3 | 2 1 . Energy Cannon 1 | . 1 . Ballistic Gun 1 | 1 . . Ballistic Cannon 3 | . 3 . Launcher . | . . . Special Weapon 1 | . 1 . Impact Weapon . | . . . Slashing Weapon . | . . . Piercing Weapon . | . . . Special Melee Weapon . | . . . Unidentified Prototypes . | . . . Parts Lost 9 | . 2 7 Power 3 | . 1 2 Propulsion 3 | . 1 2 Utility 2 | . . 2 Weapon 1 | . . 1 Highest Loss Streak 7 | . 1 7 To Critical Strikes . | . . . Average Backups 7 | . 6 9 Power 1 | . 1 1 Propulsion . | . . . Utility 2 | . 2 3 Weapon 2 | . 2 4 Tool/Special . | . . . Unused Backups 3 | . . 3 Power . | . . . Propulsion . | . . . Utility 2 | . . 2 Weapon 1 | . . 1 Tool/Special . | . . . Average Slot Usage (%) 89 | . 90 85 Engine 13 | . 14 10 Leg 10 | . 14 . Wheel 9 | . 7 15 Device 10 | . 9 11 Storage 13 | . 14 11 Processor 4 | . 2 11 Energy Gun 9 | . 9 8 Energy Cannon 7 | . 6 10 Ballistic Cannon 9 | . 11 3 Peak Build Rating 12 | 6 7 12 Average Rating 7 | 4 6 9 On Entrance 4 | . 6 7 Avg Prop Armor Cover (%) . | . . . Naked Turns . | . . . Heaviest Build 30 | 14 22 30 Greatest Support 26 | 26 26 20 Greatest Overweight (x) 2 | . 2 2 Average Overweight (x) 1 | . 1 1 Largest Inventory Capacity 20 | 8 20 10 Average Capacity 9 | 6 9 10 Most Carried 10 | 1 10 10 Average Carried 7 | . 6 9 Final Capacity 10 | 8 10 10 Final Carried 9 | 1 9 8 Class Distribution -------------------- 69% | Mutant 30% | Scavenger-Mutant Dominant Class ---------------- Mutant | -10/Materials Mutant | -9/Materials Resources | -11 -10 -9 ----------- Run | Yrd Mat Mat Matter Collected 690 | 187 296 207 Remotely . | . . . Salvage Created 1108 | . 481 627 Parts 79 | . 33 46 Haulers Intercepted . | . . . Recyclers Shooed . | . . . Parts Field Recycled . | . . . Retrieved Matter . | . . . Parts Self-Destructed . | . . . Prevented . | . . . Parts Restored . | . . . Kills | -11 -10 -9 ------- Run | Yrd Mat Mat Combat Hostiles Destroyed 26 | . 15 11 Guns 6 | . 5 1 Cannons 19 | . 10 9 Classes Destroyed 7 | . 3 4 Worker 2 | . . 2 Builder 2 | . . 2 Operator 2 | . . 2 Watcher 5 | . 3 2 Swarmer 6 | . 6 . Grunt 17 | . 9 8 Sentry 3 | . . 3 Best Kill Streak 4 | . 3 4 Combat Bots Only 3 | . 3 2 Max Kills in Single Turn 2 | . 2 2 Gunslinging . | . . . Exploded . | . . . Melee . | . . . Uniques/NPCs Destroyed . | . . . Combat | -11 -10 -9 -------- Run | Yrd Mat Mat Hostile Shots Fired 180 | . 73 107 Missed 35 | . 11 24 Hits 145 | . 62 83 Projectile 145 | . 62 83 Critical Strikes 3 | . 2 1 Damage Taken 1674 | . 689 985 Core 422 | . 201 221 Absorbed by Shields . | . . . Regen/Repaired (Parts) 117 | . 117 . Core Remaining (%) 59 | 100 19 . Volleys Fired 107 | . 60 47 Largest 2 | . 2 2 Hottest 110 | . 110 110 Shots Fired 212 | . 119 93 Gun 91 | . 58 33 Cannon 120 | . 60 60 Launcher . | . . . Special 1 | . 1 . Kinetic 43 | . 30 13 Thermal 169 | . 89 80 Explosive . | . . . Electromagnetic . | . . . Robot Hit Streak 10 | . 7 10 Robot Miss Streak 5 | . 5 5 Penetration Max . | . . . Secondary Targets 1 | . 1 . Max Gunslinging Chain 1 | . 1 . Shots Hit Robots 102 | . 45 57 Core Hits 48 | . 25 23 Critical Kills . | . . . Critical Parts Destroyed . | . . . Critical Strikes 3 | . 2 1 Burn 2 | . 1 1 Blast 1 | . 1 . Melee Attacks . | . . . Impact . | . . . Slashing . | . . . Piercing . | . . . Sneak Attacks . | . . . Combat Hostiles . | . . . Follow-up Attacks . | . . . Damage Inflicted 1725 | . 729 996 Guns 566 | . 284 282 Cannons 1159 | . 445 714 Explosions . | . . . Melee . | . . . Ramming . | . . . Kinetic 340 | . 184 156 Thermal 1385 | . 545 840 Explosive . | . . . Electromagnetic . | . . . Impact . | . . . Slashing . | . . . Piercing . | . . . Highest Corruption 5 | . 5 . Average Corruption 3 | . 3 . Corruption Purged . | . . . Corruption Blocked . | . . . Effects 13 | . 13 . Message Errors 5 | . 5 . Matter Fused 5 | . 5 . Heat Flow Errors 2 | . 2 . Data Loss (major) 1 | . 1 . Overload Shots . | . . . Overflow Damage . | . . . Projectiles . | . . . Explosions . | . . . Melee . | . . . Knockbacks 2 | . . 2 Impact . | . . . Kinetic 2 | . . 2 Secondary . | . . . Self-Inflicted Damage . | . . . Shots . | . . . Rammed . | . . . Targets Rammed . | . . . Kicked . | . . . Crushed . | . . . Highest Temperature 461 | . 289 461 Average Temperature 102 | . 95 113 Received Heat Transfer 840 | . 339 501 Effects 2 | . . 2 Shutdowns 1 | . . 1 Interference 1 | . . 1 Siege Activations . | . . . Martial Activations . | . . . Shielding Activations . | . . . Robots Disrupted . | . . . Combat Hostiles . | . . . Robots Corrupted . | . . . Combat Hostiles . | . . . Parts Fried . | . . . Impact Corruptions . | . . . Robots Melted 1 | . . 1 Combat Hostiles 1 | . . 1 Parts Melted 4 | . . 4 Heat Transferred 3589 | . 1480 2109 Parts Sabotaged . | . . . Parts Stolen . | . . . Parts Stripped . | . . . Power Chain Reactions . | . . . Alert | -11 -10 -9 ------- Run | Yrd Mat Mat Maximum Alert Level . | . . . Low Security (%) 100 | 100 100 100 Level 1 . | . . . Level 2 . | . . . Level 3 . | . . . Level 4 . | . . . Level 5 . | . . . High Security . | . . . Max Security . | . . . Peak Influence 119 | . 70 119 Initial 26 | . . 26 Average 22 | . 15 43 Influence Increases 759 | . 417 342 Destroy 0b10 Robot/C 520 | . 300 220 Destroy 0b10 Robot/NC 55 | . 15 40 Destroy Leader 120 | . 66 54 Successful Hack 46 | . 33 13 Disable Machine 15 | . . 15 Destroy Structure 3 | . 3 . Influence Decreases 687 | . 353 334 Entered New Map 38 | . . 38 Time Decay 532 | . 306 226 Lost Part 89 | . 19 70 Lost Ally 10 | . 10 . Purge Threat 18 | . 18 . Squads Dispatched 5 | . 3 2 Investigation 3 | . 2 1 Extermination . | . . . Reinforcement 2 | . 1 1 Assault . | . . . Garrison . | . . . Intercept . | . . . Searches Triggered . | . . . Construction Impeded . | . . . Haulers Reinforced . | . . . Active Scanning Responses . | . . . Cargo Convoy Interrupts . | . . . Stealth | -11 -10 -9 --------- Run | Yrd Mat Mat Distress Signals 1 | . . 1 Communications Jammed . | . . . Distress Signals . | . . . Times Spotted 40 | . 21 19 Peak Tracking Total 5 | . 4 5 Tactical Retreats 1 | . . 1 ECM-based Alert Blocks 1 | . . 1 Traps | -11 -10 -9 ------- Run | Yrd Mat Mat Traps Triggered 6 | . 5 1 Indirectly . | . . . Trap Hack Attempts . | . . . Triggered . | . . . Disarmed 4 | . 4 . Reprogrammed . | . . . Reused . | . . . Traps Extracted . | . . . Installed . | . . . Triggered . | . . . Machines | -11 -10 -9 ---------- Run | Yrd Mat Mat Machines Disabled 1 | . . 1 Max in Single Turn 1 | . . 1 Machines Repaired . | . . . Machines Dismantled . | . . . Machines Sabotaged . | . . . Overloaded Fab Kills . | . . . Hacking | -11 -10 -9 --------- Run | Yrd Mat Mat Machines Accessed 13 | . 10 3 Terminals 10 | . 7 3 Fabricators . | . . . Repair Stations 1 | . 1 . Recycling Units 2 | . 2 . Scanalyzers . | . . . Garrison Access . | . . . Total Hacks 62 | . 53 9 Successful 44 | . 39 5 Failed 18 | . 14 4 Catastrophic 1 | . 1 . Database Lockouts . | . . . Manual 52 | . 43 9 Terminals 48 | . 39 9 Fabricators . | . . . Repair Stations 4 | . 4 . Recycling Units 10 | . 10 . Scanalyzers . | . . . Garrison Access . | . . . Terminal Hacks 3 | . 3 . Unreport Threat 2 | . 2 . Disarm Traps 1 | . 1 . Fabricator Hacks . | . . . Repair Station Hacks 4 | . 4 . Scan Component 2 | . 2 . Repair 2 | . 2 . Recycling Unit Hacks 2 | . 2 . Report Inventory 1 | . 1 . Retrieve Components 1 | . 1 . Scanalyzer . | . . . Garrison Access Hacks . | . . . Unauthorized Hacks 32 | . 27 5 Terminals 28 | . 23 5 Track 6 | . 6 . Assimilate 1 | . 1 . Botnet 10 | . 7 3 Operators 3 | . 3 . Skim 8 | . 6 2 Fabricators . | . . . Repair Stations . | . . . Recycling Units 4 | . 4 . Reject 2 | . 2 . Recyclers 2 | . 2 . Scanalyzers . | . . . Garrison Access . | . . . Data Cores Recovered 1 | . . 1 Used . | . . . Hacking Detections 10 | . 7 3 Full Trace Events 1 | . 1 . Feedback Events . | . . . Feedback Blocked . | . . . Robot Schematics Acquired . | . . . Robots Built . | . . . Authchips . | . . . Time . | . . . Total Robot Build Rating . | . . . Part Schematics Acquired . | . . . Parts Built . | . . . Authchips . | . . . Time . | . . . Total Part Build Rating . | . . . Part Studies Acquired . | . . . Parts Repaired 2 | . 2 . Time 52 | . 52 . Parts Recycled . | . . . Recycled Matter . | . . . Retrieved Matter . | . . . Retrieved Components . | . . . Parts Scanalyzed . | . . . Part Schematics Acquired . | . . . Parts Damaged . | . . . Bothacking | -11 -10 -9 ------------ Run | Yrd Mat Mat Used RIF Installer . | . . . Robots Hacked . | . . . Non-combat . | . . . Combat . | . . . Robot Hacks Applied . | . . . Relay Couplers Released . | . . . Fabnet Peak Effective % . | . . . Robots Rewired . | . . . Allies Hacked . | . . . Hacks Repelled . | . . . Allies | -11 -10 -9 -------- Run | Yrd Mat Mat Total Allies 1 | . 1 . Largest Group 1 | . 1 . Highest-Rated Group 10 | . 10 . Highest-Rated Ally 10 | . 10 . Total Orders . | . . . Ally Attacks . | . . . Total Damage . | . . . Kills . | . . . Allies Corrupted . | . . . Allies Melted . | . . . Intel | -11 -10 -9 ------- Run | Yrd Mat Mat Active Infowar (turns) 21 | . . 21 ECM 21 | . . 21 Robot Analysis Total . | . . . Derelict Logs Recovered . | . . . Drone Launches . | . . . Drone Recoveries . | . . . Exploration | -11 -10 -9 ------------- Run | Yrd Mat Mat Turns Passed 2162 | 41 1599 522 Spaces Moved 1294 | 34 926 334 Core 1 | 1 . . Treads . | . . . Legs 395 | . 395 . Wheels 898 | 33 531 334 Hover . | . . . Flight . | . . . Fastest Speed 50 | 50 90 95 Average Speed 124 | 87 133 102 Slowest Speed 190 | 90 190 110 Overloaded Moves . | . . . Propulsion Burnouts . | . . . Robots Hopped . | . . . Potential Cave-ins . | . . . Cave-ins Triggered . | . . . Exploration Rate (%) 41 | 3 97 24 Regions Visited 2 Branch Regions . Pre-discovered Areas 1 | . 1 . Known Exits Taken 1 | . 1 . Unknown Exits Taken 1 | 1 . . Scrap Searched . | . . . Spaces Dug . | . . . Terrain Destroyed . | . . . Melee . | . . . Projectile . | . . . AOE . | . . . Terrain Rammed . | . . . Walls Destroyed . | . . . Machines Disabled . | . . . Actions | -11 -10 -9 --------- Run | Yrd Mat Mat Total 1624 | 41 1166 417 Wait 168 | . 146 22 Move 1292 | 33 925 334 Hop . | . . . Pick Up 14 | 1 11 2 Fast Attach 10 | 6 2 2 Attach 5 | . 2 3 Detach . | . . . Swap 21 | 1 14 6 Drop 7 | . 6 1 Fire 107 | . 60 47 Melee . | . . . Ram . | . . . Kick . | . . . Crush . | . . . Escape Stasis . | . . . Rewire . | . . . Trap . | . . . Miscellaneous . | . . . Route ------- -11/Scrapyard -10/Materials (discovered 5 exits: *Mat x3 / [*Min] / Sub) -9/Materials History --------- Turn | Location | Event 24 | -11/Scrapyard | Discovered new exit (range 15) 42 | -11/Scrapyard | Entered Materials 189 | -10/Materials | Discovered new exit (range 15) 359 | -10/Materials | Discovered new exit (range 16) 512 | -10/Materials | Core integrity fell below 50% 579 | -10/Materials | Repaired Med. Laser 600 | -10/Materials | Build established: Scavenger-Mutant 607 | -10/Materials | Repaired Med. Laser 754 | -10/Materials | Discovered new exit (range 3) 926 | -10/Materials | Discovered new exit (range 12) 1249 | -10/Materials | Build established: Mutant 1307 | -10/Materials | Learned location of Subcaves (-10) 1374 | -10/Materials | Learned location of 1 exit from Storage 1412 | -10/Materials | Identified exit to Materials 1429 | -10/Materials | Identified exit to Subcaves 1544 | -10/Materials | Learned location of 1 exit from Storage 1582 | -10/Materials | Learned Storage trap positions 1590 | -10/Materials | Core integrity fell below 20% 1630 | -10/Materials | Learned location of 1 exit from Recycling 1641 | -10/Materials | Entered another Materials area 1641 | -9/Materials | Evolved 2 slots: Utility x2 2160 | -9/Materials | Core integrity fell below 50% 2163 | -9/Materials | Self-destructed Last Messages --------------- 02117_ Imp. Ion Engine destroyed. 02118_ K-01 Serf collects debris. 02122_ G-34 Mercenary destroyed. 02124_ K-01 Serf collects debris. 02127_ R-06 Scavenger collects Heat Sink. 02127_ K-01 Serf collects debris. 02128_ K-01 Serf destroyed. 02132_ Wheel destroyed. 02141_ Y-45 Defender heat damages Heat Sink, Hvy. Assault Rifle, Lgt. Treads. 02141_ Wheel destroyed. 02144_ Heat Sink destroyed. 02145_ Y-45 Defender heat damages Lgt. Armor Plating, Lgt. Treads, Beam Rifle. 02145_ Y-45 Defender destroyed. 02157_ G-34 Mercenary knocked back. 02160_ Lgt. Cannon destroyed. 02163_ Power failure, Ion Engine shutdown. 02163_ Overheating: System interference. 02163_ Signal Interpreter temporarily disabled. Map ----- +----------------------------------------------------+ | ?????????????????????????????????????????????????? | | ?????????????????????????????????????????????????? | | ?????????????????????????????????????????????????? | | ?????????????????????????????????????????????????? | | ?????????????????????????????????????????????????? | | ?????????????????????????????????????????????????? | | ?????????????????????????????????????????????????? | | ?????????????????????????????????????????????????? | | ?????????????????????????????????????????????????? | | ?????????????????????????????????????????????????? | | ?????????????????????????????????????????????????? | | ?????????????????????????????????????????????????? | | ?????????????????????????????????????????????????? | | ?????????????????????????????????????????????????? | | ???????????????????????????? ????????????????????? | | ??????????????????????????? =%#??????????????????? | | ??????????????????????????? =*#??????????????????? | | ??#+###+#?????????????????# *#??????????????????? | | ??# ????????????????? [%#??????????????????? | | ??# ????????????????? !#??????????????????? | | ??# ????????????????? #??????????????????? | | ??# #?????????????????# #??????????????????? | | ??# #?????????????????# #??????????????????? | | ??# #?????????????????# #??##+###??????????? | | ??# #??????????????####! g### #??????????? | | ??# ############??##!@%%^ ????????? | | ??# #??#! ^ %^^^g% ????????? | | ????# % #??#! =% g ????????? | | ????# = """ #??#! ###% # ?????????? | | ????####+### """ #??#! #?????###??????????? | | ??????#* = # """ #??##! #??????????????????? | | ??????# # #???#### ##?????????????????? | | ??????# # ####### #?????????????????? | | ??????# # #?????????????????? | | ??????# # #?????????????????? | | ??????# # """ """ #?????????????????? | | ####### # """ """ ## #?????????????????? | | + # """ """ ########?????????????????? | | ####### # """ """ #????????????????????????? | | #??######### """ """ #????????????????????????? | | #??# "T" + ! = #????????????????????????? | | #??# #^ = [*% #????????????????????????? | | #??# # """ """ #????????????????????????? | | #??######### """ """ !###########??????????????? | | ######?????# """ """%=+ """ #??????????????? | | #?????# """ """**# """"" ""#??????????????? | | #?????# """ """ # """"" T"#??????????????? | | #?????# % % # """"" ""#??????????????? | | "" #######^ ^% | # """ #??????????????? | | "" # !^= # #??????????????? | +----------------------------------------------------+ Best States ------------- Heat Dissipation 38 Energy Generation 12 Energy Capacity 265 Matter Stores 300 Matter Capacity 300 Sight Range 16 Terrain Scan Density 10 ECM Strength 1 Armor Coverage 225 Evasion (%) 55 Item Schematics ----------------- None Robot Schematics ------------------ None Fabricated ------------ Nothing Repaired ---------- Med. Laser | 18% | -10/Materials Med. Laser | 14% | -10/Materials Studied --------- None Alien Tech Used ----------------- None Achievements -------------- None Challenges ------------ None Game ------ Seed PrecisionSlugPit Manual? 0 Play Time 00:23:57 Cumulative 21.3 hours Start 2025.10.26 @ 20:31:35 End 2025.10.26 @ 20:57:37 Sessions 1 Manual Loads 0 Difficulty Rogue Special Mode None Game No. 20 Rogue 20 Adventurer 0 Explorer 0 Win Type - Total 0 Types 0/0/0/0/0/0/0/0/0/0 Lore% 12 Gallery% 19 Achievement% 13 Wizard Run 0 Options --------- Layout 1 ASCII 0 Keyboard 0 Movement Mouse Keybinds 0 Fullscreen 2 Font 32/SmallcapsGlow Map View 50x35 Zoom Use 0% Tactical HUD 1 Map Filters NONE Filters NONE Steam 1 RUN: 648b415e-694c-455f-9fc7-0fc9a9eae87d